fUST/lending_fUST_20250729
["ID","MTS","AMOUNT","RATE_DAILY","PERIOD"]
[375783910,1753744252246,-526.45,0.00021369,2]
[375783911,1753744252255,-1100.75,0.00021369,2]
[375783912,1753744252265,-460.0,0.00021369,2]
[375783913,1753744252275,-460.0,0.00021369,2]
[375783914,1753744252284,-460.0,0.00021369,2]
[375783915,1753744252294,-460.0,0.00021369,2]
[375783916,1753744252303,-1494.38,0.00021369,2]
[375783917,1753744252312,-460.0,0.00021369,2]
[375783918,1753744252322,-460.0,0.00021369,2]
[375783919,1753744252331,-460.0,0.00021369,2]
[375783920,1753744252340,-460.0,0.00021369,2]
[375783921,1753744252350,-460.0,0.00021369,2]
[375783922,1753744252360,-500.07,0.00021369,2]
[375783923,1753744252369,-460.0,0.00021369,2]
[375783924,1753744252379,-990.45,0.00021369,2]
[375783925,1753744252388,-694.04,0.00021369,2]
[375783926,1753744252398,-1211.12,0.00021369,2]
[375783927,1753744252408,-3294.55,0.00021369,2]
[375783928,1753744252417,-1211.5,0.00021369,2]
[375783929,1753744252426,-460.0,0.00021369,2]
[375783930,1753744252436,-460.0,0.00021369,2]
[375783931,1753744252448,-460.0,0.00021369,2]
[375783932,1753744252458,-460.0,0.00021369,2]
[375783933,1753744252468,-460.0,0.00021369,2]
[375783934,1753744252477,-460.0,0.00021369,2]
[375783935,1753744252487,-743.65017873,0.00021541,2]
[375783936,1753744252496,-151.0,0.00021629,2]
[375783937,1753744252505,-151.0,0.00021629,2]
[375783938,1753744252515,-151.0,0.00021629,2]
[375783939,1753744252525,-151.0,0.00021629,2]
[375783940,1753744252535,-151.0,0.00021629,2]
[375783941,1753744252544,-156.197152,0.00021629,2]
[375783942,1753744252553,-156.197152,0.00021629,2]
[375783943,1753744252562,-1174.749,0.00021639,2]
[375783944,1753744252572,-460.0,0.00021643,2]
[375783945,1753744252581,-3571.0,0.00021643,2]
[375783946,1753744252590,-460.0,0.00021643,2]
[375783947,1753744252600,-579.21818815,0.00021643,2]
[375783948,1753744252610,-460.0,0.00021643,2]
[375783949,1753744252619,-241.05363665,0.00021643,2]
[375783950,1753744252629,-514.38,0.00021643,2]
[375783951,1753744252639,-460.0,0.00021643,2]
[375783952,1753744252651,-460.0,0.00021643,2]
[375783953,1753744252660,-460.0,0.00021643,2]
[375783954,1753744252670,-460.0,0.00021643,2]
[375783955,1753744252679,-460.0,0.00021643,2]
[375783956,1753744252689,-460.0,0.00021643,2]
[375783957,1753744252699,-460.0,0.00021643,2]
[375783958,1753744252709,-460.0,0.00021643,2]
[375783959,1753744252718,-1306.98,0.00021643,2]
[375783960,1753744252728,-460.0,0.00021643,2]
[375783961,1753744252737,-460.0,0.00021643,2]
[375783962,1753744252747,-460.0,0.00021643,2]
[375783963,1753744252756,-460.0,0.00021643,2]
[375783964,1753744252765,-460.0,0.00021643,2]
[375783965,1753744252775,-460.0,0.00021643,2]
[375783966,1753744252784,-460.0,0.00021643,2]
[375783967,1753744252794,-892.29,0.00021643,2]
[375783968,1753744252803,-460.0,0.00021643,2]
[375783969,1753744252812,-634.41,0.00021643,2]
[375783970,1753744252821,-460.0,0.00021643,2]
[375783971,1753744252831,-460.0,0.00021643,2]
[375783972,1753744252842,-1388.32,0.00021643,2]
[375783973,1753744252851,-460.0,0.00021643,2]
[375783974,1753744252860,-460.0,0.00021643,2]
[375783975,1753744252870,-1153.22,0.00021643,2]
[375783976,1753744252879,-460.0,0.00021643,2]
[375783977,1753744252888,-460.0,0.00021643,2]
[375783978,1753744252898,-526.45,0.00021643,2]
[375783979,1753744252907,-1100.75,0.00021643,2]
[375783980,1753744252916,-460.0,0.00021643,2]
[375783981,1753744252926,-460.0,0.00021643,2]
[375783982,1753744252935,-460.0,0.00021643,2]
[375783983,1753744252945,-460.0,0.00021643,2]
[375783984,1753744252955,-1494.38,0.00021643,2]
[375783985,1753744252964,-460.0,0.00021643,2]
[375783986,1753744252974,-460.0,0.00021643,2]
[375783987,1753744252983,-460.0,0.00021643,2]
[375783988,1753744252992,-460.0,0.00021643,2]
[375783989,1753744253001,-460.0,0.00021643,2]
[375783990,1753744253010,-460.0,0.00021643,2]
[375783991,1753744253020,-990.45,0.00021643,2]
[375783992,1753744253030,-694.04,0.00021643,2]
[375783993,1753744253039,-1211.12,0.00021643,2]
[375783994,1753744253048,-3294.55,0.00021643,2]
[375783995,1753744253058,-1211.5,0.00021643,2]
[375783996,1753744253067,-460.0,0.00021643,2]
[375783997,1753744253077,-460.0,0.00021643,2]
[375783998,1753744253087,-460.0,0.00021643,2]
[375783999,1753744253096,-460.0,0.00021643,2]
[375784000,1753744253106,-460.0,0.00021643,2]
[375784001,1753744253116,-460.0,0.00021643,2]
[375784002,1753744253125,-1500.0,0.00021716,2]
[375784003,1753744253135,-1404.74566212,0.00021716,2]
[375784004,1753744253145,-447.0,0.00021784,4]
[375784005,1753744253155,-151.0,0.000218,4]
[375784006,1753744253165,-1386.9834649,0.00021887,2]
[375784007,1753744253174,-151.0,0.00021917,2]
[375784008,1753744253184,-460.0,0.00021917,2]
[375784009,1753744253193,-151.0,0.00021917,2]
[375784010,1753744253203,-151.0,0.00021917,2]
[375784011,1753744253212,-721.382572,0.00021917,2]
[375784012,1753744253222,-721.382572,0.00021917,2]
[375784013,1753744253231,-151.0,0.00021917,2]
[375784014,1753744253240,-151.0,0.00021917,2]
[375784015,1753744253249,-3571.0,0.00021917,2]
[375784016,1753744253258,-460.0,0.00021917,2]
[375784017,1753744253268,-460.0,0.00021917,2]
[375784018,1753744253278,-514.38,0.00021917,2]
[375784019,1753744253287,-460.0,0.00021917,2]
[375784020,1753744253296,-460.0,0.00021917,2]
[375784021,1753744253309,-460.0,0.00021917,2]
[375784022,1753744253319,-460.0,0.00021917,2]
[375784023,1753744253328,-536.92,0.00021917,2]
[375784024,1753744253338,-460.0,0.00021917,2]
[375784025,1753744253348,-460.0,0.00021917,2]
[375784026,1753744253359,-460.0,0.00021917,2]
[375784027,1753744253368,-1306.98,0.00021917,2]
[375784028,1753744253378,-460.0,0.00021917,2]
[375784029,1753744253387,-460.0,0.00021917,2]
[375784030,1753744253398,-460.0,0.00021917,2]
[375784031,1753744253408,-460.0,0.00021917,2]
[375784032,1753744253418,-460.0,0.00021917,2]
[375784033,1753744253427,-460.0,0.00021917,2]
[375784034,1753744253437,-460.0,0.00021917,2]
[375784035,1753744253453,-892.29,0.00021917,2]
[375784036,1753744253464,-460.0,0.00021917,2]
[375784037,1753744253474,-634.41,0.00021917,2]
[375784038,1753744253483,-460.0,0.00021917,2]
[375784039,1753744253494,-460.0,0.00021917,2]
[375784040,1753744253505,-1388.32,0.00021917,2]
[375784041,1753744253514,-460.0,0.00021917,2]
[375784042,1753744253526,-460.0,0.00021917,2]
[375784043,1753744253535,-1153.22,0.00021917,2]
[375784044,1753744253545,-460.0,0.00021917,2]
[375784045,1753744253554,-526.45,0.00021917,2]
[375784046,1753744253564,-460.0,0.00021917,2]
[375784047,1753744253574,-1100.75,0.00021917,2]
[375784048,1753744253584,-460.0,0.00021917,2]
[375784049,1753744253593,-460.0,0.00021917,2]
[375784050,1753744253603,-460.0,0.00021917,2]
[375784051,1753744253613,-460.0,0.00021917,2]
[375784052,1753744253623,-1494.38,0.00021917,2]
[375784053,1753744253632,-460.0,0.00021917,2]
[375784054,1753744253643,-460.0,0.00021917,2]
[375784055,1753744253653,-460.0,0.00021917,2]
[375784056,1753744253663,-460.0,0.00021917,2]
[375784057,1753744253673,-460.0,0.00021917,2]
[375784058,1753744253683,-460.0,0.00021917,2]
[375784059,1753744253692,-990.45,0.00021917,2]
[375784060,1753744253702,-694.04,0.00021917,2]
[375784061,1753744253713,-1211.12,0.00021917,2]
[375784062,1753744253723,-3294.55,0.00021917,2]
[375784063,1753744253733,-1211.5,0.00021917,2]
[375784064,1753744253743,-460.0,0.00021917,2]
[375784065,1753744253753,-518.79,0.00021917,2]
[375784066,1753744253763,-460.0,0.00021917,2]
[375784067,1753744253773,-460.0,0.00021917,2]
[375784068,1753744253783,-460.0,0.00021917,2]
[375784069,1753744253794,-460.0,0.00021917,2]
[375784070,1753744253805,-1737.54,0.00022,7]
[375784071,1753744253815,-24400.46,0.00022,2]
[375784072,1753744253825,-718.37,0.00022,7]
[375784073,1753744253835,-6428.71,0.00022,7]
[375784074,1753744253845,-151.0,0.00022,7]
[375784075,1753744253855,-151.0,0.00022,7]
[375784076,1753744253865,-151.0,0.00022,7]
[375784077,1753744253875,-151.0,0.00022,7]
[375784078,1753744253885,-151.0,0.00022,7]
[375784079,1753744253895,-296.308414,0.00022,7]
[375784080,1753744253904,-296.308414,0.00022,7]
[375784081,1753744253915,-151.0,0.00022,7]
[375784082,1753744253924,-151.0,0.00022,7]
[375784083,1753744253934,-214.87999826,0.00022,7]
[375784084,1753744253944,-151.0,0.00022,7]
[375784085,1753744253954,-224.497717,0.00022,7]
[375784086,1753744253964,-224.497717,0.00022,7]
[375784087,1753744253974,-151.0,0.000221,9]
[375784088,1753744253984,-151.0,0.00022158,7]
[375784089,1753744253994,-312.16666667,0.00022158,7]
[375784090,1753744254004,-196.00371425,0.00022191,2]
[375784091,1753744254016,-3571.0,0.00022191,2]
[375784092,1753744254026,-460.0,0.00022191,2]
[375784093,1753744254036,-460.0,0.00022191,2]
[375784094,1753744254046,-514.38,0.00022191,2]
[375784095,1753744254056,-460.0,0.00022191,2]
[375784096,1753744254066,-460.0,0.00022191,2]
[375784097,1753744254075,-460.0,0.00022191,2]
[375784098,1753744254085,-460.0,0.00022191,2]
[375784099,1753744254095,-151.0,0.00022191,7]
[375784100,1753744254104,-151.0,0.00022191,7]
[375784101,1753744254114,-151.0,0.00022191,7]
[375784102,1753744254124,-460.0,0.00022191,2]
[375784103,1753744254133,-151.0,0.00022191,7]
[375784104,1753744254143,-165.054628,0.00022191,7]
[375784105,1753744254154,-165.054628,0.00022191,7]
[375784106,1753744254164,-460.0,0.00022191,2]
[375784107,1753744254174,-151.0,0.00022191,7]
[375784108,1753744254183,-151.0,0.00022191,7]
[375784109,1753744254193,-460.0,0.00022191,2]
[375784110,1753744254202,-1306.98,0.00022191,2]
[375784111,1753744254212,-175.130423,0.00022191,7]
[375784112,1753744254222,-460.0,0.00022191,2]
[375784113,1753744254232,-460.0,0.00022191,2]
[375784114,1753744254241,-460.0,0.00022191,2]
[375784115,1753744254251,-460.0,0.00022191,2]
[375784116,1753744254261,-460.0,0.00022191,2]
[375784117,1753744254272,-460.0,0.00022191,2]
[375784118,1753744254282,-460.0,0.00022191,2]
[375784119,1753744254292,-265.981917,0.00022191,7]
[375784120,1753744254302,-265.981917,0.00022191,7]
[375784121,1753744254312,-892.29,0.00022191,2]
[375784122,1753744254323,-460.0,0.00022191,2]
[375784123,1753744254332,-634.41,0.00022191,2]
[375784124,1753744254342,-460.0,0.00022191,2]
[375784125,1753744254353,-1388.32,0.00022191,2]
[375784126,1753744254362,-460.0,0.00022191,2]
[375784127,1753744254373,-233.754417,0.00022191,7]
[375784128,1753744254383,-460.0,0.00022191,2]
[375784129,1753744254393,-1153.22,0.00022191,2]
[375784130,1753744254403,-233.754417,0.00022191,7]
[375784131,1753744254413,-460.0,0.00022191,2]
[375784132,1753744254423,-526.45,0.00022191,2]
[375784133,1753744254432,-428.250487,0.00022191,7]
[375784134,1753744254443,-460.0,0.00022191,2]
[375784135,1753744254455,-1100.75,0.00022191,2]
[375784136,1753744254465,-428.250487,0.00022191,7]
[375784137,1753744254474,-460.0,0.00022191,2]
[375784138,1753744254484,-460.0,0.00022191,2]
[375784139,1753744254495,-460.0,0.00022191,2]
[375784140,1753744254505,-460.0,0.00022191,2]
[375784141,1753744254514,-1494.38,0.00022191,2]
[375784142,1753744254526,-460.0,0.00022191,2]
[375784143,1753744254536,-460.0,0.00022191,2]
[375784144,1753744254546,-460.0,0.00022191,2]
[375784145,1753744254556,-460.0,0.00022191,2]
[375784146,1753744254565,-151.0,0.00022191,7]
[375784147,1753744254576,-460.0,0.00022191,2]
[375784148,1753744254586,-460.0,0.00022191,2]
[375784149,1753744254596,-990.45,0.00022191,2]
[375784150,1753744254606,-694.04,0.00022191,2]
[375784151,1753744254617,-1211.12,0.00022191,2]
[375784152,1753744254627,-3294.55,0.00022191,2]
[375784153,1753744254638,-1211.5,0.00022191,2]
[375784154,1753744254648,-460.0,0.00022191,2]
[375784155,1753744254658,-460.0,0.00022191,2]
[375784156,1753744254669,-460.0,0.00022191,2]
[375784157,1753744254679,-460.0,0.00022191,2]
[375784158,1753744254691,-460.0,0.00022191,2]
[375784159,1753744254701,-447.0,0.00022238,4]
[375784160,1753744254715,-273.781544,0.00022379,7]
[375784161,1753744254726,-273.781544,0.00022379,7]
[375784162,1753744254736,-151.0,0.00022465,7]
[375784163,1753744254747,-151.0,0.00022465,7]
[375784164,1753744254758,-3571.0,0.00022465,2]
[375784165,1753744254768,-460.0,0.00022465,2]
[375784166,1753744254778,-460.0,0.00022465,2]
[375784167,1753744254788,-514.38,0.00022465,2]
[375784168,1753744254798,-151.0,0.00022465,7]
[375784169,1753744254807,-460.0,0.00022465,2]
[375784170,1753744254817,-460.0,0.00022465,2]
[375784171,1753744254829,-460.0,0.00022465,2]
[375784172,1753744254839,-460.0,0.00022465,2]
[375784173,1753744254982,-460.0,0.00022465,2]
[375784174,1753744254993,-460.0,0.00022465,2]
[375784175,1753744255003,-1306.98,0.00022465,2]
[375784176,1753744255012,-460.0,0.00022465,2]
[375784177,1753744255023,-460.0,0.00022465,2]
[375784178,1753744255032,-460.0,0.00022465,2]
[375784179,1753744255044,-460.0,0.00022465,2]
[375784180,1753744255053,-460.0,0.00022465,2]
[375784181,1753744255063,-460.0,0.00022465,2]
[375784182,1753744255072,-460.0,0.00022465,2]
[375784183,1753744255082,-892.29,0.00022465,2]
[375784184,1753744255092,-460.0,0.00022465,2]
[375784185,1753744255101,-634.41,0.00022465,2]
[375784186,1753744255111,-460.0,0.00022465,2]
[375784187,1753744255120,-1388.32,0.00022465,2]
[375784188,1753744255129,-460.0,0.00022465,2]
[375784189,1753744255139,-460.0,0.00022465,2]
[375784190,1753744255148,-1153.22,0.00022465,2]
[375784191,1753744255158,-460.0,0.00022465,2]
[375784192,1753744255167,-526.45,0.00022465,2]
[375784193,1753744255177,-460.0,0.00022465,2]
[375784194,1753744255186,-1100.75,0.00022465,2]
[375784195,1753744255196,-460.0,0.00022465,2]
[375784196,1753744255205,-460.0,0.00022465,2]
[375784197,1753744255215,-460.0,0.00022465,2]
[375784198,1753744255224,-467.27,0.00022465,2]
[375784199,1753744255234,-1494.38,0.00022465,2]
[375784200,1753744255243,-460.0,0.00022465,2]
[375784201,1753744255253,-460.0,0.00022465,2]
[375784202,1753744255263,-460.0,0.00022465,2]
[375784203,1753744255272,-460.0,0.00022465,2]
[375784204,1753744255282,-460.0,0.00022465,2]
[375784205,1753744255295,-990.45,0.00022465,2]
[375784206,1753744255304,-694.04,0.00022465,2]
[375784207,1753744255314,-1211.12,0.00022465,2]
[375784208,1753744255324,-3294.55,0.00022465,2]
[375784209,1753744255333,-1211.5,0.00022465,2]
[375784210,1753744255342,-460.0,0.00022465,2]
[375784211,1753744255352,-460.0,0.00022465,2]
[375784212,1753744255362,-460.0,0.00022465,2]
[375784213,1753744255372,-460.0,0.00022465,2]
[375784214,1753744255381,-151.0,0.00022487,7]
[375784215,1753744255391,-151.0,0.0002249,7]
[375784216,1753744255403,-151.0,0.000225,7]
[375784217,1753744255413,-156.143482,0.00022517,3]
[375784218,1753744255423,-500.0,0.00022526,2]
[375784219,1753744255432,-179.73040439,0.00022683,2]
[375784220,1753744255442,-447.0,0.00022691,5]
[375784221,1753744255457,-151.0,0.00022739,7]
[375784222,1753744255467,-151.0,0.00022739,7]
[375784223,1753744255477,-151.0,0.00022739,7]
[375784224,1753744255487,-3571.0,0.00022739,2]
[375784225,1753744255498,-151.0,0.00022739,7]
[375784226,1753744255508,-460.0,0.00022739,2]
[375784227,1753744255519,-460.0,0.00022739,2]
[375784228,1753744255531,-151.0,0.00022739,7]
[375784229,1753744255540,-316.850402,0.00022739,7]
[375784230,1753744255550,-514.38,0.00022739,2]
[375784231,1753744255560,-151.0,0.00022739,7]
[375784232,1753744255569,-460.0,0.00022739,2]
[375784233,1753744255579,-156.197152,0.00022739,7]
[375784234,1753744255589,-472.49,0.00022739,2]
[375784235,1753744255598,-156.197152,0.00022739,7]
[375784236,1753744255608,-460.0,0.00022739,2]
[375784237,1753744255617,-460.0,0.00022739,2]
[375784238,1753744255628,-460.0,0.00022739,2]
[375784239,1753744255637,-1306.98,0.00022739,2]
[375784240,1753744255648,-460.0,0.00022739,2]
[375784241,1753744255658,-460.0,0.00022739,2]
[375784242,1753744255668,-228.15179746,0.00022739,2]
[375784243,1753744255678,-460.0,0.00022739,2]
[375784244,1753744255688,-460.0,0.00022739,2]
[375784245,1753744255697,-460.0,0.00022739,2]
[375784246,1753744255707,-460.0,0.00022739,2]
[375784247,1753744255717,-892.29,0.00022739,2]
[375784248,1753744255727,-460.0,0.00022739,2]
[375784249,1753744255737,-634.41,0.00022739,2]
[375784250,1753744255747,-178.86,0.00022739,2]
[375784251,1753744255757,-1388.32,0.00022739,2]
[375784252,1753744255766,-460.0,0.00022739,2]
[375784253,1753744255776,-460.0,0.00022739,2]
[375784254,1753744255786,-1153.22,0.00022739,2]
[375784255,1753744255796,-460.0,0.00022739,2]
[375784256,1753744255805,-526.45,0.00022739,2]
[375784257,1753744255814,-460.0,0.00022739,2]
[375784258,1753744255824,-530.12,0.00022739,2]
[375784259,1753744255833,-1100.75,0.00022739,2]
[375784260,1753744255843,-460.0,0.00022739,2]
[375784261,1753744255853,-460.0,0.00022739,2]
[375784262,1753744255862,-1494.38,0.00022739,2]
[375784263,1753744255872,-460.0,0.00022739,2]
[375784264,1753744255882,-460.0,0.00022739,2]
[375784265,1753744255892,-460.0,0.00022739,2]
[375784266,1753744255905,-460.0,0.00022739,2]
[375784267,1753744255914,-460.0,0.00022739,2]
[375784268,1753744255924,-990.45,0.00022739,2]
[375784269,1753744255933,-694.04,0.00022739,2]
[375784270,1753744255942,-1211.12,0.00022739,2]
[375784271,1753744255952,-3294.55,0.00022739,2]
[375784272,1753744255961,-1211.5,0.00022739,2]
[375784273,1753744255971,-460.0,0.00022739,2]
[375784274,1753744255980,-460.0,0.00022739,2]
[375784275,1753744255991,-460.0,0.00022739,2]
[375784276,1753744256000,-460.0,0.00022739,2]
[375784277,1753744256009,-743.65017873,0.00022775,2]
[375784278,1753744256019,-151.0,0.00022929,7]
[375784279,1753744256028,-151.0,0.00022929,7]
[375784280,1753744256038,-1428.45,0.00023,2]
[375784281,1753744256054,-160.0,0.00023,2]
[375784282,1753744256065,-929.0,0.00023005,2]
[375784283,1753744256075,-151.0,0.00023013,7]
[375784284,1753744256084,-151.0,0.00023013,7]
[375784285,1753744256094,-151.0,0.00023013,7]
[375784286,1753744256103,-721.382572,0.00023013,7]
[375784287,1753744256113,-721.382572,0.00023013,7]
[375784288,1753744256122,-151.0,0.00023013,7]
[375784289,1753744256131,-151.0,0.00023013,7]
[375784290,1753744256141,-3571.0,0.00023013,2]
[375784291,1753744256152,-460.0,0.00023013,2]
[375784292,1753744256161,-460.0,0.00023013,2]
[375784293,1753744256171,-514.38,0.00023013,2]
[375784294,1753744256180,-460.0,0.00023013,2]
[375784295,1753744256189,-164.57,0.00023013,2]
[375784296,1753744256198,-460.0,0.00023013,2]
[375784297,1753744256207,-460.0,0.00023013,2]
[375784298,1753744256216,-1306.98,0.00023013,2]
[375784299,1753744256225,-460.0,0.00023013,2]
[375784300,1753744256235,-460.0,0.00023013,2]
[375784301,1753744256244,-460.0,0.00023013,2]
[375784302,1753744256253,-460.0,0.00023013,2]
[375784303,1753744256262,-460.0,0.00023013,2]
[375784304,1753744256271,-174.74,0.00023013,2]
[375784305,1753744256281,-892.29,0.00023013,2]
[375784306,1753744256290,-460.0,0.00023013,2]
[375784307,1753744256299,-634.41,0.00023013,2]
[375784308,1753744256308,-1388.32,0.00023013,2]
[375784309,1753744256318,-509.18,0.00023013,2]
[375784310,1753744256327,-460.0,0.00023013,2]
[375784311,1753744256337,-1153.22,0.00023013,2]
[375784312,1753744256346,-460.0,0.00023013,2]
[375784313,1753744256356,-526.45,0.00023013,2]
[375784314,1753744256366,-460.0,0.00023013,2]
[375784315,1753744256375,-1100.75,0.00023013,2]
[375784316,1753744256385,-460.0,0.00023013,2]
[375784317,1753744256395,-205.71442385,0.00023013,2]
[375784318,1753744256406,-1494.38,0.00023013,2]
[375784319,1753744256415,-460.0,0.00023013,2]
[375784320,1753744256424,-460.0,0.00023013,2]
[375784321,1753744256434,-202.07,0.00023013,2]
[375784322,1753744256443,-460.0,0.00023013,2]
[375784323,1753744256458,-460.0,0.00023013,2]
[375784324,1753744256468,-990.45,0.00023013,2]
[375784325,1753744256477,-694.04,0.00023013,2]
[375784326,1753744256487,-1211.12,0.00023013,2]
[375784327,1753744256497,-3294.55,0.00023013,2]
[375784328,1753744256507,-774.09468541,0.00023013,2]
[375784329,1753744256643,-437.40531459,0.00023013,2]
[375784330,1753744256654,-460.0,0.00023013,2]
[375784331,1753744256665,-460.0,0.00023013,2]
[375784332,1753744256675,-460.0,0.00023013,2]
[375784333,1753744256684,-929.0,0.00023059,2]
[375784334,1753744256695,-447.0,0.00023145,5]
[375784335,1753744256705,-3571.0,0.00023287,2]
[375784336,1753744256715,-460.0,0.00023287,2]
[375784337,1753744256724,-460.0,0.00023287,2]
[375784338,1753744256734,-285.10850752,0.00023287,2]
[375784339,1753744256744,-514.38,0.00023287,2]
[375784340,1753744256754,-460.0,0.00023287,2]
[375784341,1753744256763,-460.0,0.00023287,2]
[375784342,1753744256773,-460.0,0.00023287,2]
[375784343,1753744256782,-1306.98,0.00023287,2]
[375784344,1753744256792,-460.0,0.00023287,2]
[375784345,1753744256802,-460.0,0.00023287,2]
[375784346,1753744256811,-464.93,0.00023287,2]
[375784347,1753744256821,-460.0,0.00023287,2]
[375784348,1753744256830,-460.0,0.00023287,2]
[375784349,1753744256840,-296.308414,0.00023287,7]
[375784350,1753744256849,-296.308414,0.00023287,7]
[375784351,1753744256858,-892.29,0.00023287,2]
[375784352,1753744256867,-460.0,0.00023287,2]
[375784353,1753744256877,-634.41,0.00023287,2]
[375784354,1753744256887,-151.0,0.00023287,7]
[375784355,1753744256898,-1388.32,0.00023287,2]
[375784356,1753744256907,-460.0,0.00023287,2]
[375784357,1753744256917,-1153.22,0.00023287,2]
[375784358,1753744256926,-460.0,0.00023287,2]
[375784359,1753744256935,-526.45,0.00023287,2]
[375784360,1753744256944,-460.0,0.00023287,2]
[375784361,1753744256954,-1100.75,0.00023287,2]
[375784362,1753744256963,-151.0,0.00023287,7]
[375784363,1753744256973,-460.0,0.00023287,2]
[375784364,1753744256982,-1494.38,0.00023287,2]
[375784365,1753744256997,-460.0,0.00023287,2]
[375784366,1753744257006,-460.0,0.00023287,2]
[375784367,1753744257016,-460.0,0.00023287,2]
[375784368,1753744257027,-460.0,0.00023287,2]
[375784369,1753744257036,-990.45,0.00023287,2]
[375784370,1753744257046,-694.04,0.00023287,2]
[375784371,1753744257056,-1211.12,0.00023287,2]
[375784372,1753744257066,-3294.55,0.00023287,2]
[375784373,1753744257075,-1211.5,0.00023287,2]
[375784374,1753744257085,-151.0,0.00023287,7]
[375784375,1753744257094,-224.497717,0.00023287,7]
[375784376,1753744257105,-460.0,0.00023287,2]
[375784377,1753744257115,-224.497717,0.00023287,7]
[375784378,1753744257124,-460.0,0.00023287,2]
[375784379,1753744257134,-460.0,0.00023287,2]
[375784380,1753744257144,-200.0,0.00023333,15]
[375784381,1753744257155,-200.0,0.00023333,15]
[375784382,1753744257164,-200.0,0.00023333,15]
[375784383,1753744257174,-200.0,0.00023333,15]
[375784384,1753744257184,-200.0,0.00023333,15]
[375784385,1753744257195,-200.0,0.00023333,15]
[375784386,1753744257205,-366.0,0.00023333,15]
[375784387,1753744257214,-969.0,0.0002339,2]
[375784388,1753744257224,-929.0,0.00023401,2]
[375784389,1753744257233,-151.0,0.00023455,7]
[375784390,1753744257243,-151.0,0.00023455,7]
[375784391,1753744257252,-3571.0,0.00023561,2]
[375784392,1753744257261,-460.0,0.00023561,2]
[375784393,1753744257271,-460.0,0.00023561,2]
[375784394,1753744257280,-151.0,0.00023561,7]
[375784395,1753744257289,-151.0,0.00023561,7]
[375784396,1753744257299,-151.0,0.00023561,7]
[375784397,1753744257444,-514.38,0.00023561,2]
[375784398,1753744257459,-460.0,0.00023561,2]
[375784399,1753744257469,-460.0,0.00023561,2]
[375784400,1753744257479,-165.054628,0.00023561,7]
[375784401,1753744257489,-165.054628,0.00023561,7]
[375784402,1753744257499,-460.0,0.00023561,2]
[375784403,1753744257508,-151.0,0.00023561,7]
[375784404,1753744257518,-151.0,0.00023561,7]
[375784405,1753744257528,-1306.98,0.00023561,2]
[375784406,1753744257538,-460.0,0.00023561,2]
[375784407,1753744257548,-460.0,0.00023561,2]
[375784408,1753744257558,-460.0,0.00023561,2]
[375784409,1753744257568,-460.0,0.00023561,2]